Cogmind - Beta 13 *** ADVENTURER MODE // 2024.07.04 @ 22:44:47 // Winter2022/Polymind Player: DeepestRoots Result: Destroyed by L-41 Fighter with Axe Performance ------------- Evolutions (5) 2500 Regions Visited (9) 1800 Robots Destroyed (35) 175 Value Destroyed (1095) 1095 Prototype IDs (2) 40 Alien Tech Used (0) 0 Bonus (4807) 4807 TOTAL SCORE: 10217 Bonus ------- Polymind Skill 3810 Pacifist 200 High Alert Combat Kills 97 Entered Garrisons 200 Entered DSFs 500 Cogmind --------- Core Integrity 0/1000 Matter 0/0 Energy 25/25 System Corruption 0% Temperature Cool (9) Movement Core (50) Location -5/Factory Parts ------- > --- POWER (1) -------- (None) > --- PROPULSION (2) --- (None) > --- UTILITY (3) ------ Terrain Scan Processor > --- WEAPON (1) ------- (None) > --- INVENTORY (0) ---- (None) Peak State ------------ > --- POWER ------------ Improved Ion Engine > --- PROPULSION ------- Light Treads Light Treads > --- UTILITY ---------- Heat Sink Heat Sink Light Armor Plating > --- WEAPON ----------- Beam Rifle Heavy Assault Rifle > --- INVENTORY -------- (None) [Rating: 11] Favorites ----------- Power Improved Ion Engine Engine Improved Ion Engine Power Core Light Nuclear Core Propulsion Light Treads Treads Light Treads Leg Aluminum Leg Wheel Wheel Hover Unit Hover Unit Flight Unit Flight Unit Utility Heat Sink Device Heat Sink Storage Small Storage Unit Processor Visual Processing Unit Protection Light Armor Plating Weapon Beam Rifle Energy Gun Beam Rifle Ballistic Gun Heavy Assault Rifle Special Weapon Mining Laser Build | -11 -10 -9 -9 -9 -9 -7 -7 -6 -5 ------- Run | Yrd Mat Mat Sto Gar Rec Fac DSF Fac Fac Slots Evolved . | . . . . . . . . . . Power . | . . . . . . . . . . Propulsion . | . . . . . . . . . . Utility . | . . . . . . . . . . Weapon . | . . . . . . . . . . Parts Attached . | . . . . . . . . . . Power . | . . . . . . . . . . Engine . | . . . . . . . . . . Core . | . . . . . . . . . . Reactor . | . . . . . . . . . . Propulsion . | . . . . . . . . . . Treads . | . . . . . . . . . . Leg . | . . . . . . . . . . Wheel . | . . . . . . . . . . Hover . | . . . . . . . . . . Flight . | . . . . . . . . . . Utility . | . . . . . . . . . . Device . | . . . . . . . . . . Storage . | . . . . . . . . . . Processor . | . . . . . . . . . . Hackware . | . . . . . . . . . . Protection . | . . . . . . . . . . Artifact . | . . . . . . . . . . Weapon . | . . . . . . . . . . Energy Gun . | . . . . . . . . . . Energy Cannon . | . . . . . . . . . . Ballistic Gun . | . . . . . . . . . . Ballistic Cannon . | . . . . . . . . . . Launcher . | . . . . . . . . . . Special Weapon . | . . . . . . . . . . Impact Weapon . | . . . . . . . . . . Slashing Weapon . | . . . . . . . . . . Piercing Weapon . | . . . . . . . . . . Special Melee Weapon . | . . . . . . . . . . Unidentified Prototypes . | . . . . . . . . . . Parts Lost 18 | . . . . 4 . . 2 . 12 Power 3 | . . . . 1 . . . . 2 Propulsion 5 | . . . . 1 . . . . 4 Utility 6 | . . . . 1 . . 1 . 4 Weapon 4 | . . . . 1 . . 1 . 2 Highest Loss Streak 6 | . . . . 3 . . 2 . 6 To Critical Strikes . | . . . . . . . . . . Average Slot Usage (%) 94 | . 100 93 100 99 100 . 79 62 78 Engine 11 | . 18 14 12 7 12 . 7 4 12 Core 1 | . . . . 8 . . . . . Treads 16 | . . 14 22 14 25 . 23 18 . Leg 3 | . . . . 16 . . . . . Wheel 4 | . 28 1 . . . . . 8 24 Hover 1 | . 9 8 1 . . . . . . Flight 1 | . . 4 2 . . . . . . Device 23 | . 18 17 23 22 25 . 23 27 26 Processor 2 | . 9 12 1 . . . . . 2 Protection 7 | . . 4 10 6 12 . 8 . . Energy Gun 8 | . . 4 10 15 12 . 7 . . Ballistic Gun 7 | . . 6 11 7 12 . 7 . . Special Weapon 1 | . . . . . . . . 4 9 Naked Turns 84 | . 5 20 1 5 . . 2 8 43 Heaviest Build 18 | 9 9 18 18 18 18 18 18 6 6 Greatest Support 46 | 32 32 46 40 40 40 40 40 40 20 Greatest Overweight (x) . | . . . . . . . . . . Average Overweight (x) . | . . . . . . . . . . Largest Inventory Capacity 6 | 4 4 6 1 1 1 1 1 1 . Average Capacity . | 1 2 1 . . 1 1 . . . Most Carried 5 | . 1 5 . . . . . . . Average Carried . | . . . . . . . . . . Final Capacity 4 | 4 . . 1 1 1 1 1 . . Final Carried . | . . . . . . . . . . Class Distribution -------------------- 63% | Sentry 9% | Tunneler 8% | Grunt 5% | Watcher 3% | Builder Dominant Class ---------------- Recycler | -10/Materials Sentry | -9/Materials Sentry | -9/Storage Sentry | -9/Garrison Sentry | -9/Recycling Sentry | -7/Factory Sentry | -7/DSF Sentry | -6/Factory Tunneler | -5/Factory Resources | -11 -10 -9 -9 -9 -9 -7 -7 -6 -5 ----------- Run | Yrd Mat Mat Sto Gar Rec Fac DSF Fac Fac Matter Collected 140 | . . 32 36 45 27 . . . . Remotely . | . . . . . . . . . . Salvage Created 811 | . . 145 135 457 74 . . . . Parts 62 | . . 10 10 42 . . . . . Haulers Intercepted . | . . . . . . . . . . Recyclers Shooed . | . . . . . . . . . . Parts Field Recycled . | . . . . . . . . . . Retrieved Matter . | . . . . . . . . . . Parts Self-Destructed . | . . . . . . . . . . Prevented . | . . . . . . . . . . Kills | -11 -10 -9 -9 -9 -9 -7 -7 -6 -5 ------- Run | Yrd Mat Mat Sto Gar Rec Fac DSF Fac Fac Combat Hostiles Destroyed 31 | . . 5 3 22 1 . . . . Melee 1 | . . 1 . . . . . . . Guns 28 | . . 2 3 22 1 . . . . AOE 2 | . . 2 . . . . . . . Classes Destroyed 6 | . . 6 . . . . . . . Worker 2 | . . 2 . . . . . . . Watcher 2 | . . 1 1 . . . . . . Swarmer 6 | . . 1 . 5 . . . . . Grunt 18 | . . 2 3 13 . . . . . Duelist 1 | . . 1 . . . . . . . Sentry 6 | . . 1 . 4 1 . . . . Best Kill Streak 9 | . . 5 2 9 1 . . . . Combat Bots Only 9 | . . 3 2 9 1 . . . . Max Kills in Single Turn 3 | . . 3 1 2 1 . . . . Gunslinging 1 | . . . . 1 . . . . . Exploded 2 | . . 2 . . . . . . . Melee 1 | . . 1 . . . . . . . Uniques/NPCs Destroyed . | . . . . . . . . . . Combat | -11 -10 -9 -9 -9 -9 -7 -7 -6 -5 -------- Run | Yrd Mat Mat Sto Gar Rec Fac DSF Fac Fac Hostile Shots Fired 443 | . . 52 24 167 16 . 20 18 146 Missed 124 | . . 24 2 34 1 . 2 11 50 Damage Taken 4004 | . . 254 237 1276 170 . 525 42 1500 Core 1609 | . . 51 47 257 22 . 188 42 1002 Absorbed by Shields . | . . . . . . . . . . Ignored by Resistances 1071 | . . 72 69 377 48 . 143 15 347 Core Remaining (%) 74 | 100 100 . . . 5 . 73 95 . Volleys Fired 85 | . . 7 12 55 9 . . . 2 Largest 2 | . . 2 2 2 2 . . . 1 Hottest 100 | . . 79 79 79 79 . . . 100 Shots Fired 138 | . . 14 24 80 18 . . . 2 Gun 136 | . . 14 24 80 18 . . . . Cannon . | . . . . . . . . . . Launcher . | . . . . . . . . . . Special 2 | . . . . . . . . . 2 Kinetic 53 | . . 7 12 25 9 . . . . Thermal 85 | . . 7 12 55 9 . . . 2 Explosive . | . . . . . . . . . . Electromagnetic . | . . . . . . . . . . Robot Hit Streak 20 | . . 8 14 18 20 . . . . Robot Miss Streak 2 | . . 2 1 1 1 . . . . Penetration Max . | . . . . . . . . . . Secondary Targets 6 | . . . 1 5 . . . . . Max Gunslinging Chain 1 | . . . 1 1 . . . . . Shots Hit Robots 122 | . . 12 20 73 17 . . . . Core Hits 54 | . . 9 7 33 2 . . . 3 Critical Kills . | . . . . . . . . . . Critical Parts Destroyed . | . . . . . . . . . . Critical Strikes 6 | . . 1 . 2 3 . . . . Burn 6 | . . 1 . 2 3 . . . . Melee Attacks . | . . . . . . . . . . Impact . | . . . . . . . . . . Slashing . | . . . . . . . . . . Piercing . | . . . . . . . . . . Sneak Attacks . | . . . . . . . . . . Combat Hostiles . | . . . . . . . . . . Follow-up Attacks . | . . . . . . . . . . Damage Inflicted 2279 | . . 587 297 1125 261 . . . 9 Guns 1868 | . . 187 297 1123 261 . . . . Cannons . | . . . . . . . . . . Explosions 392 | . . 392 . . . . . . . Melee . | . . . . . . . . . . Ramming 19 | . . 8 . 2 . . . . 9 Kinetic 737 | . . 97 137 365 138 . . . . Thermal 1131 | . . 90 160 758 123 . . . . Explosive 392 | . . 392 . . . . . . . Electromagnetic . | . . . . . . . . . . Impact . | . . . . . . . . . . Slashing . | . . . . . . . . . . Piercing . | . . . . . . . . . . Highest Corruption 1 | . . . . 1 1 . . . . Average Corruption 1 | . . . . 1 1 . . . . Corruption Purged . | . . . . . . . . . . Corruption Blocked . | . . . . . . . . . . Effects 7 | . . . . 6 1 . . . . Heat Flow Errors 2 | . . . . 2 . . . . . Energy Discharges 4 | . . . . 3 1 . . . . Data Loss (minor) 1 | . . . . 1 . . . . . Overload Shots . | . . . . . . . . . . Overflow Damage 132 | . . 132 . . . . . . . Projectiles . | . . . . . . . . . . Explosions 132 | . . 132 . . . . . . . Melee . | . . . . . . . . . . Knockbacks . | . . . . . . . . . . Impact . | . . . . . . . . . . Kinetic . | . . . . . . . . . . Secondary . | . . . . . . . . . . Self-Inflicted Damage 3 | . . . . . . . . . 3 Shots . | . . . . . . . . . . Rammed 9 | . . 5 . 1 . . . . 3 Targets Rammed 13 | . . 6 . 4 . . . . 3 Kicked 3 | . . . . 3 . . . . . Crushed 1 | . . 1 . . . . . . . Highest Temperature 323 | . . 26 131 323 44 . . . 120 Average Temperature 54 | . . 12 78 65 27 . . . 37 Received Heat Transfer 1629 | . . 81 213 768 63 . 27 18 459 Effects 3 | . . . . 3 . . . . . Energy Bleed 1 | . . . . 1 . . . . . Interference 2 | . . . . 2 . . . . . Siege Activations . | . . . . . . . . . . Robots Corrupted . | . . . . . . . . . . Combat Hostiles . | . . . . . . . . . . Parts Fried . | . . . . . . . . . . Impact Corruptions . | . . . . . . . . . . Robots Melted . | . . . . . . . . . . Combat Hostiles . | . . . . . . . . . . Parts Melted 10 | . . . 2 4 4 . . . . Heat Transferred 3182 | . . 296 407 1961 518 . . . . Parts Sabotaged . | . . . . . . . . . . Parts Stolen . | . . . . . . . . . . Parts Stripped . | . . . . . . . . . . Power Chain Reactions . | . . . . . . . . . . Alert | -11 -10 -9 -9 -9 -9 -7 -7 -6 -5 ------- Run | Yrd Mat Mat Sto Gar Rec Fac DSF Fac Fac Peak Influence 708 | . 16 514 226 708 292 154 95 55 189 Initial 272 | . . 5 184 40 272 154 95 40 28 Average 193 | . 5 239 97 439 275 154 90 43 77 Maximum Alert Level 3 | . . 2 1 3 1 . . . . Low Security (%) 54 | 100 100 33 67 14 . 100 100 100 100 Level 1 30 | . . 47 32 23 100 . . . . Level 2 14 | . . 18 . 59 . . . . . Level 3 . | . . . . 3 . . . . . Level 4 . | . . . . . . . . . . Level 5 . | . . . . . . . . . . High Security . | . . . . . . . . . . Max Security . | . . . . . . . . . . Squads Dispatched 3 | . . 1 . . . . . . 2 Investigation 1 | . . 1 . . . . . . . Extermination . | . . . . . . . . . . Reinforcement 2 | . . . . . . . . . 2 Assault . | . . . . . . . . . . Garrison . | . . . . . . . . . . Intercept . | . . . . . . . . . . Searches Triggered . | . . . . . . . . . . Construction Impeded . | . . . . . . . . . . Haulers Reinforced . | . . . . . . . . . . Active Scanning Responses . | . . . . . . . . . . Cargo Convoy Interrupts . | . . . . . . . . . . Stealth | -11 -10 -9 -9 -9 -9 -7 -7 -6 -5 --------- Run | Yrd Mat Mat Sto Gar Rec Fac DSF Fac Fac Distress Signals 5 | . . 3 . . . . . . 2 Communications Jammed . | . . . . . . . . . . Distress Signals . | . . . . . . . . . . Times Spotted 111 | . 1 31 3 32 1 . 4 2 37 Peak Tracking Total 16 | . . 8 2 9 1 . 2 3 16 Tactical Retreats 9 | . . 2 . 1 . . 1 . 5 Traps | -11 -10 -9 -9 -9 -9 -7 -7 -6 -5 ------- Run | Yrd Mat Mat Sto Gar Rec Fac DSF Fac Fac Traps Triggered . | . . . . . . . . . . Indirectly . | . . . . . . . . . . Trap Hack Attempts . | . . . . . . . . . . Triggered . | . . . . . . . . . . Disarmed . | . . . . . . . . . . Reprogrammed . | . . . . . . . . . . Reused . | . . . . . . . . . . Traps Extracted . | . . . . . . . . . . Installed . | . . . . . . . . . . Triggered . | . . . . . . . . . . Machines | -11 -10 -9 -9 -9 -9 -7 -7 -6 -5 ---------- Run | Yrd Mat Mat Sto Gar Rec Fac DSF Fac Fac Machines Disabled 2 | . . 2 . . . . . . . Max in Single Turn 1 | . . 1 . . . . . . . Machines Repaired . | . . . . . . . . . . Machines Dismantled . | . . . . . . . . . . Machines Sabotaged . | . . . . . . . . . . Overloaded Fab Kills . | . . . . . . . . . . Hacking | -11 -10 -9 -9 -9 -9 -7 -7 -6 -5 --------- Run | Yrd Mat Mat Sto Gar Rec Fac DSF Fac Fac Machines Accessed 10 | . 1 2 2 . 2 1 . . 2 Terminals 9 | . 1 2 1 . 2 1 . . 2 Fabricators . | . . . . . . . . . . Repair Stations . | . . . . . . . . . . Recycling Units . | . . . . . . . . . . Scanalyzers . | . . . . . . . . . . Garrison Access 1 | . . . 1 . . . . . . Total Hacks 20 | . 3 7 3 . 4 1 . . 2 Successful 8 | . 1 3 1 . . 1 . . 2 Failed 12 | . 2 4 2 . 4 . . . . Catastrophic 2 | . . 1 . . 1 . . . . Database Lockouts . | . . . . . . . . . . Manual 9 | . 2 3 2 . 2 . . . . Terminals 19 | . 3 7 2 . 4 1 . . 2 Fabricators . | . . . . . . . . . . Repair Stations . | . . . . . . . . . . Recycling Units . | . . . . . . . . . . Scanalyzers . | . . . . . . . . . . Garrison Access 1 | . . . 1 . . . . . . Terminal Hacks 6 | . 1 2 . . . 1 . . 2 Robot Analysis 2 | . . 2 . . . . . . . Prototype ID Bank 1 | . 1 . . . . . . . . Open DSF 2 | . . . . . . 1 . . 1 Assault Status 1 | . . . . . . . . . 1 Fabricator Hacks . | . . . . . . . . . . Repair Station Hacks . | . . . . . . . . . . Recycling Unit Hacks . | . . . . . . . . . . Scanalyzer . | . . . . . . . . . . Garrison Access Hacks 1 | . . . 1 . . . . . . Unlock Access 1 | . . . 1 . . . . . . Unauthorized Hacks 1 | . . 1 . . . . . . . Terminals 1 | . . 1 . . . . . . . Botnet 1 | . . 1 . . . . . . . Fabricators . | . . . . . . . . . . Repair Stations . | . . . . . . . . . . Recycling Units . | . . . . . . . . . . Scanalyzers . | . . . . . . . . . . Garrison Access . | . . . . . . . . . . Data Cores Recovered . | . . . . . . . . . . Used . | . . . . . . . . . . Hacking Detections 6 | . 1 2 . . 2 . . . 1 Full Trace Events 2 | . . 1 . . 1 . . . . Feedback Events . | . . . . . . . . . . Feedback Blocked . | . . . . . . . . . . Robot Schematics Acquired . | . . . . . . . . . . Robots Built . | . . . . . . . . . . Authchips . | . . . . . . . . . . Time . | . . . . . . . . . . Total Robot Build Rating . | . . . . . . . . . . Part Schematics Acquired . | . . . . . . . . . . Parts Built . | . . . . . . . . . . Authchips . | . . . . . . . . . . Time . | . . . . . . . . . . Total Part Build Rating . | . . . . . . . . . . Parts Repaired . | . . . . . . . . . . Time . | . . . . . . . . . . Parts Recycled . | . . . . . . . . . . Recycled Matter . | . . . . . . . . . . Retrieved Matter . | . . . . . . . . . . Retrieved Components . | . . . . . . . . . . Parts Scanalyzed . | . . . . . . . . . . Part Schematics Acquired . | . . . . . . . . . . Parts Damaged . | . . . . . . . . . . Bothacking | -11 -10 -9 -9 -9 -9 -7 -7 -6 -5 ------------ Run | Yrd Mat Mat Sto Gar Rec Fac DSF Fac Fac Used RIF Installer . | . . . . . . . . . . Robots Hacked 14 | . 1 4 2 5 . . 1 . 1 Non-combat 5 | . 1 2 1 . . . . . 1 Combat 9 | . . 2 1 5 . . 1 . . Robot Hacks Applied 17 | . 2 4 4 5 . . 1 . 1 map_walls 2 | . . 1 . . . . . . 1 locate_stockpiles 1 | . . 1 . . . . . . . map_route 2 | . 1 . 1 . . . . . . mark_security 2 | . 1 . 1 . . . . . . find_shortcuts 9 | . . 2 1 5 . . 1 . . find_garrison 1 | . . . 1 . . . . . . Relay Couplers Released . | . . . . . . . . . . Fabnet Peak Effective % . | . . . . . . . . . . Robots Rewired . | . . . . . . . . . . Allies Hacked . | . . . . . . . . . . Hacks Repelled . | . . . . . . . . . . Allies | -11 -10 -9 -9 -9 -9 -7 -7 -6 -5 -------- Run | Yrd Mat Mat Sto Gar Rec Fac DSF Fac Fac Total Allies . | . . . . . . . . . . Largest Group . | . . . . . . . . . . Highest-Rated Group . | . . . . . . . . . . Highest-Rated Ally . | . . . . . . . . . . Total Orders . | . . . . . . . . . . Ally Attacks . | . . . . . . . . . . Total Damage . | . . . . . . . . . . Kills . | . . . . . . . . . . Allies Corrupted . | . . . . . . . . . . Allies Melted . | . . . . . . . . . . Intel | -11 -10 -9 -9 -9 -9 -7 -7 -6 -5 ------- Run | Yrd Mat Mat Sto Gar Rec Fac DSF Fac Fac Robot Analysis Total 10 | 1 1 6 . 1 . . . 1 . Derelict Logs Recovered . | . . . . . . . . . . Drone Launches . | . . . . . . . . . . Drone Recoveries . | . . . . . . . . . . Exploration | -11 -10 -9 -9 -9 -9 -7 -7 -6 -5 ------------- Run | Yrd Mat Mat Sto Gar Rec Fac DSF Fac Fac Turns Passed 3064 | 35 98 319 1051 663 274 4 135 81 404 Spaces Moved 2057 | 59 124 353 361 353 155 3 86 71 492 Core 194 | 46 9 19 1 8 . . 2 16 93 Treads 696 | . . 78 148 191 155 3 84 37 . Legs 154 | . . . . 154 . . . . . Wheels 524 | 13 64 30 . . . . . 18 399 Hover 282 | . 51 146 85 . . . . . . Flight 207 | . . 80 127 . . . . . . Fastest Speed 37 | 50 50 37 37 50 160 160 50 50 50 Average Speed 100 | 61 78 76 91 140 160 160 157 114 74 Slowest Speed 160 | 100 100 160 160 160 160 160 160 160 80 Overloaded Moves . | . . . . . . . . . . Propulsion Burnouts . | . . . . . . . . . . Robots Hopped 3 | . . 3 . . . . . . . Cave-ins Triggered . | . . . . . . . . . . Exploration Rate (%) 35 | 3 27 34 62 45 43 . 81 2 20 Regions Visited 9 Branch Regions 2 Pre-discovered Areas . | . . . . . . . . . . Known Exits Taken 3 | . 1 . 1 . . 1 . . . Unknown Exits Taken 4 | 1 . 1 . . 1 . . 1 . Scrap Searched . | . . . . . . . . . . Spaces Dug . | . . . . . . . . . . Terrain Destroyed 15 | . . 15 . . . . . . . Melee . | . . . . . . . . . . Projectile . | . . . . . . . . . . AOE 15 | . . 15 . . . . . . . Terrain Rammed . | . . . . . . . . . . Walls Destroyed . | . . . . . . . . . . Machines Disabled . | . . . . . . . . . . Actions | -11 -10 -9 -9 -9 -9 -7 -7 -6 -5 --------- Run | Yrd Mat Mat Sto Gar Rec Fac DSF Fac Fac Total 2906 | 58 124 381 1056 441 163 2 86 70 525 Wait 759 | . . 19 683 29 . . . . 28 Move 2043 | 58 123 347 360 352 154 2 85 70 492 Hop 2 | . . 2 . . . . . . . Pick Up 1 | . 1 . . . . . . . . Fast Attach . | . . . . . . . . . . Attach . | . . . . . . . . . . Detach . | . . . . . . . . . . Swap . | . . . . . . . . . . Drop . | . . . . . . . . . . Fire 85 | . . 7 12 55 9 . . . 2 Melee . | . . . . . . . . . . Ram 4 | . . . . 1 . . . . 3 Kick 3 | . . . . 3 . . . . . Crush 6 | . . 6 . . . . . . . Escape Stasis . | . . . . . . . . . . Rewire 3 | . . . 1 1 . . 1 . . Trap . | . . . . . . . . . . Miscellaneous . | . . . . . . . . . . Route ------- -11/Scrapyard -10/Materials -9/Materials -9/Storage (discovered 3 exits: [*Mat] / Rec / Gar) -9/Garrison (discovered 2 exits: *Rec x2) -9/Recycling -7/Factory -7/DSF -6/Factory -5/Factory History --------- Turn | Location | Event 6 | -11/Scrapyard | Discovered new exit (range 15) 36 | -11/Scrapyard | Entered Materials 106 | -10/Materials | Discovered new exit (range 35) 133 | -10/Materials | Identified exit to Materials 134 | -10/Materials | Entered another Materials area 449 | -9/Materials | Discovered new exit (range 14) 453 | -9/Materials | Entered Storage 500 | -9/Storage | Discovered new exit (range 6) 1473 | -9/Storage | Discovered new exit (range 5) 1502 | -9/Storage | Identified exit to Garrison 1504 | -9/Storage | Entered Garrison 1542 | -9/Garrison | Triggered checkpoint 1554 | -9/Garrison | Triggered checkpoint 1574 | -9/Garrison | Triggered checkpoint 1638 | -9/Garrison | Core integrity fell below 50% 1661 | -9/Garrison | Lost 3 parts (1n1u1w) 1678 | -9/Garrison | Triggered checkpoint 1678 | -9/Garrison | Destroyed 9 combat bots 1710 | -9/Garrison | Discovered new exit (range 10) 1734 | -9/Garrison | Triggered checkpoint 1764 | -9/Garrison | Triggered checkpoint 1998 | -9/Garrison | Triggered checkpoint 2020 | -9/Garrison | Core integrity fell below 20% 2089 | -9/Garrison | Discovered new exit (range 10) 2167 | -9/Garrison | Entered Recycling 2363 | -9/Recycling | Discovered new exit (range 8) 2441 | -9/Recycling | Entered Factory 2445 | -7/Factory | Identified exit to DSF 2445 | -7/Factory | Entered DSF 2559 | -7/DSF | Discovered new exit (range 14) 2563 | -7/DSF | Additional patrols routed to DSF 2580 | -7/DSF | Entered Factory 2620 | -6/Factory | Discovered new exit (range 13) 2661 | -6/Factory | Entered another Factory area 2964 | -5/Factory | Core integrity fell below 50% 2973 | -5/Factory | Lost 5 parts (1p2n2u) 3057 | -5/Factory | Core integrity fell below 20% 3065 | -5/Factory | Destroyed by L-41 Fighter with Axe Last Messages --------------- 02963_ K-01 Serf destroyed. 02964_ K-01 Serf collects debris. 02974_ Penetrated by Slug. 02985_ Took control of U-05 Engineer. 02996_ P-70 Sage resets U-05 Engineer, system corruption cleaned. 03015_ K-01 Serf destroyed. 03015_ Wheel destroyed. 03015_ K-01 Serf collects debris. 03019_ Welding Torch destroyed. 03023_ A-15 Conveyor suffers critical hit (Burn). 03024_ Lgt. Ion Engine destroyed. 03024_ C-30 ARC bursts open, deploying its payload. 03024_ L-41 Fighter unfolds itself. 03024_ G-50 Soldier unfolds itself. 03030_ Structural Scanner destroyed. 03047_ Penetrated by Slug. 03050_ Wheel destroyed. 03050_ Penetrated by Slug. 03050_ Terrain Scanner destroyed. 03053_ Penetrated by Slug. Map ----- +----------------------------------------------------+ | ###????????????#?????????????????????????????????? | | ###?? ?""??????#?????????????????????????????????? | | ###?? """??? ??#?????????????????????????????????? | | # """ ??#?????????????????????????????????? | | # ??#?????????????????????????????????? | | + ??#?????????????????????????????????? | | # """""????#?????????????????????????????????? | | # ? ""???????#?????????????????????????????????? | | # # ???"?????? #?????????????????????????????????? | | # # ??"????????#?????????????????????????????????? | | # # ??????? ???#?????????????????????????????????? | | # ##############?????????????????????????????????? | | # ##?#??????????????????#????????????????????????? | | # ##?????????#??????????#????????????????????????? | | # ##????? ? ? ?????????????????#?????????????????? | | # ##??????????"??##???##?????????#???????????????? | | # ##??????"?????##?????#??#????#??##?????????????? | | ##???#????????##?#?????????????##??????????????? | | ##?#?#?????? ?###??#???#?????????#?#???????????? | | ###??#??"???"?#????#?#???????#?#???????????????? | | ##???#??"?????#?????????#?#??????#?#?#?????????? | | ##???#???"? ??#???##?#???????#????#????????????? | | ###### ##??????#??#??#????#?????????????? | | ##########+#####################??#????????????? | | ###################??????????????? | | ## ;u gluY ###?????????????? | | #####gg """g """ + ??????????????? | | ##?## gg"""b R" ##????#?????????? | | ##?##uu """ p""" ##?? ???????????? | | ########### ##?## g ##? ????????????? | | * # ##?## """ """ ## ?????????????? | | #*%= ##### """ """ ##?? ???????????? | | ?""""" / ! ##?## """ """ ##? ????????????? | | ? """""" # ##?## ##??????????????? | | ?? """""" # ##### ##?#????????????? | | ?? """""" # ##### ##??????????????? | | ? ? # ##### ## ###??????????? | | ????""""? # ###########/####### ##???????????? | | ??????""? # ##???????????? | | ?? ??"??" # ?????????? | | ????????? # ?????????? | | ????????? # """ "??????????? | | ######+#?## ""?????????????? | | #?##########+############% ""?????????????? | | #?#### # / ?????????????? | | #??????? ??? ????? """????????????? | | #????# ??????????""?????????????? | | #????? # ??????????????????????? | | ###### ???### # ??????????????????????? | | #??????????## # ??????????????????????? | +----------------------------------------------------+ Best States ------------- Heat Dissipation 42 Energy Generation 19 Energy Capacity 215 Matter Stores 100 Matter Capacity 100 Sight Range 18 Robot Scan Range 14 Terrain Scan Range 16 Terrain Scan Density 85 Additional Mass Support 6 Armor Coverage 150 Resistance: KI 20 Resistance: TH 20 Resistance: EX 70 Resistance: EM 20 Resistance: I 45 Resistance: S 20 Resistance: P 20 Evasion (%) 62 Recoil Reduction 2 Offensive Hacking 10 Item Schematics ----------------- None Robot Schematics ------------------ None Fabricated ------------ Nothing Alien Tech Used ----------------- None Achievements -------------- Universal Adapter Challenges ------------ None Polymind | -11 -10 -9 -9 -9 -9 -7 -7 -6 -5 ---------- Run | Yrd Mat Mat Sto Gar Rec Fac DSF Fac Fac Hosts 16 | 1 1 4 2 5 . . 1 1 1 Combat Hostiles 9 | . . 2 1 5 . . 1 . . Allies . | . . . . . . . . . . Unique Host Classes 8 | 1 1 4 . 1 . . . 1 . Average Host Suspicion 67 | 2 17 84 59 91 44 . 49 21 80 Unsuspicious Activity 736 | 2 6 15 674 37 . . . 2 . Returns to Shadow 1 | . . . 1 . . . . . . Fuzzy Dispatches . | . . . . . . . . . . Protomatter Created 198 | . . 29 12 157 . . . . . Used 260 | 5 12 39 35 136 . . 23 5 5 Decayed . | . . . . . . . . . . Highest Spend 30 | 5 12 23 23 30 . . 23 5 5 Top 5 Hosts by Kills: Y-45 Defender (-9/Storage: 9) Y-45 Defender (-9/Garrison: 7) Y-45 Defender (-9/Materials: 4) G-47 Trooper (-9/Garrison: 4) G-47 Trooper (-9/Garrison: 4) Game ------ Seed TargetingAnalysisLoader Manual? 0 Play Time 00:31:41 Cumulative 199.2 hours Start 2024.07.04 @ 22:12:53 End 2024.07.04 @ 22:44:47 Sessions 1 Manual Loads 0 Difficulty Adventurer Special Mode Winter2022/Polymind Game No. 11 Rogue 5 Adventurer 4 Explorer 2 Win Type - Total 11 Types 9/0/0/1/0/1/0/0/0 Lore% 47 Gallery% 49 Achievement% 58 Wizard Run 0 Options --------- Layout 0 ASCII 0 Keyboard 1 Movement Arrows Keybinds 0 Fullscreen 1 Font 36/Terminus++ Map View 76x50 Zoom Use 0% Tactical HUD 1 Map Filters NONE Filters NONE Steam 0 RUN: 4b471b4a-8e72-425e-a595-b0f64ca8f2d2